bitfinex/quotes_SOLUSD_20260113
["timestamp","ask_amount","ask_price","bid_price","bid_amount"]
[1768272976311,0.7172427,138.54,138.5,7.22018695]
[1768272976985,0.7172427,138.54,138.5,10.79868167]
[1768272978109,0.7172427,138.54,138.5,3.57849472]
[1768272979118,0.7172427,138.53,138.48,28.85167886]
[1768272979295,0.7172427,138.52,138.48,10.7997541]
[1768272980200,0.7172427,138.52,138.49,3.57849472]
[1768272980911,0.7172427,138.53,138.49,10.79899103]
[1768272982908,0.7172427,138.53,138.5,3.57849472]
[1768272983108,0.7172427,138.54,138.5,3.57849472]
[1768272983913,0.7172427,138.53,138.49,10.79899103]
[1768272984917,0.7172427,138.51,138.48,7.22113662]
[1768272986301,0.7172427,138.51,138.47,3.57849472]
[1768272987317,0.7172427,138.51,138.48,7.22125938]
[1768272988418,0.7172427,138.5,138.47,7.22163728]
[1768272990699,0.6872427,138.5,138.47,7.25163728]
[1768272991815,0.6872427,138.5,138.47,9.54091301]
[1768272992913,13.8972427,138.52,138.48,2.31927573]
[1768272993122,13.8972427,138.52,138.49,2.31927573]
[1768272993813,13.8972427,138.52,138.47,7.22163728]
[1768272993814,0.7172427,138.51,138.48,2.31927573]
[1768272994023,0.7172427,138.51,138.47,9.54091301]
[1768272994214,0.7172427,138.51,138.47,7.25163728]
[1768272996322,0.67702438,138.5,138.47,7.22163728]
[1768272997198,0.64702438,138.5,138.47,7.22163728]
[1768272998839,0.64702438,138.5,138.46,18.0849563]
[1768272999021,0.64702438,138.5,138.46,20.37423203]
[1768273000320,0.64702438,138.5,138.46,27.5965345]
[1768273001038,0.64702438,138.5,138.47,0.06]
[1768273004314,0.61702438,138.5,138.47,0.06]
[1768273009922,2.28927573,138.52,138.47,0.06]
[1768273010099,0.67702438,138.51,138.48,0.09]
[1768273010622,0.67702438,138.51,138.47,2.37927573]
[1768273011419,0.67702438,138.51,138.47,9.60056598]
[1768273011827,0.67702438,138.5,138.47,7.22129025]
[1768273015127,2.28927573,138.51,138.47,7.31129025]
[1768273015332,0.67702438,138.51,138.47,2.37927573]
[1768273016814,0.67702438,138.51,138.47,0.09]
[1768273020334,0.67702438,138.51,138.46,27.5665345]
[1768273022620,0.67702438,138.5,138.47,0.09]
[1768273024052,0.67702438,138.48,138.44,7.22292411]
[1768273024217,0.64702436,138.47,138.44,7.22292411]
[1768273024540,0.58702556,138.47,138.44,7.22292411]
[1768273024918,2.28927573,138.46,138.43,7.31369667]
[1768273025539,2.28927573,138.47,138.43,7.31369667]
[1768273026140,2.28927573,138.47,138.43,0.09]
[1768273026552,0.7101146,138.47,138.43,0.09]
[1768273027644,0.7101146,138.47,138.43,2.37927573]
[1768273029044,0.7101146,138.47,138.44,7.22334585]
[1768273032243,0.7101146,138.47,138.43,2.22787702]
[1768273033842,0.7101146,138.47,138.43,7.31345447]
[1768273034567,0.70932497,138.46,138.43,7.31345447]
[1768273034848,0.70932497,138.46,138.42,9.54208745]
[1768273035056,0.70932497,138.45,138.43,7.22380803]
[1768273035235,0.64932499,138.45,138.43,7.22380803]
[1768273035438,0.64932499,138.45,138.43,7.18992094]
[1768273036131,0.64932499,138.45,138.42,7.46438833]
[1768273036332,0.64932499,138.45,138.42,9.60226535]
[1768273037131,0.58932501,138.45,138.42,9.60226535]
[1768273038363,0.58932501,138.45,138.43,9.36146965]
[1768273039262,0.58932501,138.45,138.43,7.22359263]
[1768273039566,0.58932501,138.45,138.43,9.36146965]
[1768273040068,0.58932501,138.45,138.43,7.22359263]
[1768273041574,0.58932501,138.45,138.43,9.36146965]
[1768273044877,0.52932502,138.45,138.43,9.36146965]
[1768273045072,0.52932502,138.45,138.43,7.19359265]
[1768273045281,0.52932502,138.45,138.43,9.33146967]
[1768273045576,0.52932502,138.45,138.43,7.19359265]
[1768273046878,0.52932502,138.45,138.42,7.4642685]
[1768273047080,0.52932502,138.45,138.42,9.60214552]
[1768273047258,0.52932502,138.45,138.41,7.5848705]
[1768273047666,0.52932502,138.45,138.41,9.72274752]
[1768273048780,0.52932502,138.45,138.41,7.5848705]
[1768273051180,0.70932497,138.44,138.39,11.02706938]
[1768273051387,0.67932497,138.44,138.4,10.566848]
[1768273051577,0.6493312,138.44,138.4,10.95684677]
[1768273055308,0.6493312,138.44,138.41,0.41999254]
[1768273055889,0.6493312,138.44,138.4,10.566848]
[1768273056089,0.6493312,138.44,138.4,10.98684054]
[1768273056797,0.6493312,138.44,138.4,7.64532751]
[1768273057004,0.6493312,138.44,138.4,10.98684054]
[1768273058016,0.58933121,138.44,138.4,10.98684054]
[1768273058308,0.58933121,138.44,138.4,10.566848]
[1768273058911,0.58933121,138.44,138.4,11.04684053]
[1768273061807,0.58933121,138.44,138.4,10.566848]
[1768273063505,0.58933121,138.44,138.4,11.04684053]
[1768273063706,0.58933121,138.44,138.41,0.47999253]
[1768273064213,0.55933122,138.44,138.41,0.47999253]
[1768273064383,0.55933122,138.44,138.4,10.566848]
[1768273064584,0.55933122,138.44,138.4,7.73532749]
[1768273064796,0.55933122,138.44,138.4,11.07684052]
[1768273068725,10.56497684,138.44,138.35,0.75949371]
[1768273069005,10.56497684,138.44,138.37,0.65949371]
[1768273069006,5.3895421,138.43,138.37,0.65949371]
[1768273069209,18.5695421,138.42,138.35,0.1]
[1768273069401,3.34151303,138.4,138.35,7.98736668]
[1768273069703,3.34151303,138.4,138.36,0.65949371]
[1768273070787,0.67383976,138.39,138.35,0.1]
[1768273070992,0.26580331,138.38,138.35,0.1]
[1768273071802,0.26580331,138.38,138.32,0.1]
[1768273071803,0.4717594,138.37,138.32,0.1]
[1768273073018,0.26786287,138.35,138.32,0.1]
[1768273073220,3.98384099,138.36,138.32,0.75949371]
[1768273073592,0.099,138.35,138.32,0.75949371]
[1768273073995,0.099,138.35,138.32,7.32932578]
[1768273075908,3.34151303,138.34,138.32,7.32932578]
[1768273076104,2.26848233,138.34,138.32,0.1]
[1768273076318,0.44890113,138.34,138.32,0.1]
[1768273076510,7.22702614,138.37,138.32,0.1]
[1768273077100,7.22702614,138.37,138.32,7.98892895]
[1768273078618,7.22702614,138.37,138.33,0.65949371]
[1768273078822,31.52821569,138.4,138.33,0.65949371]
[1768273079510,7.22608133,138.39,138.33,0.65949371]
[1768273080703,7.22555668,138.4,138.34,0.65949371]
[1768273080909,20.40555668,138.4,138.34,0.65949371]
[1768273081990,20.40555668,138.4,138.35,0.65949371]
[1768273089496,13.18,138.4,138.36,0.68499149]
[1768273090505,13.18,138.4,138.36,7.91231066]
[1768273091720,13.18,138.4,138.37,0.68499149]
[1768273108634,13.18,138.4,138.36,0.69962211]
[1768273109231,20.40543543,138.4,138.36,0.69962211]
[1768273114934,5.38150918,138.39,138.36,0.69962211]
[1768273115125,20.40543543,138.4,138.36,0.69962211]
[1768273115312,5.38151317,138.39,138.36,0.69962211]
[1768273115519,20.40543543,138.4,138.36,0.69962211]
[1768273115834,5.38116231,138.39,138.33,0.72145385]
[1768273116132,20.40543543,138.4,138.33,0.72145385]
[1768273116340,5.38084981,138.39,138.33,0.72145385]
[1768273116528,20.40543543,138.4,138.33,0.72145385]
[1768273116838,5.38116853,138.39,138.35,0.72145385]
[1768273117038,20.40543543,138.4,138.35,0.72145385]
[1768273117339,5.3811763,138.39,138.35,0.72145385]
[1768273117636,20.40543543,138.4,138.35,0.72145385]
[1768273117938,5.38277941,138.39,138.35,0.72145385]
[1768273118126,20.40543543,138.4,138.35,0.72145385]
[1768273118326,5.38268116,138.39,138.35,0.72145385]
[1768273118626,20.40543543,138.4,138.35,0.72145385]
[1768273118819,5.38339908,138.39,138.35,0.72145385]
[1768273119017,20.40543543,138.4,138.35,0.72145385]
[1768273119335,18.56339908,138.39,138.35,0.72145385]
[1768273119529,13.18,138.39,138.35,0.72145385]
[1768273120937,13.18,138.39,138.36,0.72145385]
[1768273122128,13.18,138.41,138.37,0.72145385]
[1768273122334,5.38747461,138.4,138.37,0.72145385]
[1768273122534,13.18,138.41,138.37,0.72145385]
[1768273122718,5.38860065,138.4,138.37,0.72145385]
[1768273122919,13.18,138.41,138.37,0.72145385]
[1768273123119,5.38842,138.4,138.37,0.72145385]
[1768273123336,13.18,138.41,138.37,0.72145385]
[1768273123549,5.38832689,138.4,138.37,0.72145385]
[1768273123850,13.18,138.41,138.37,0.72145385]
[1768273124048,5.38996355,138.4,138.37,0.72145385]
[1768273124225,20.40491286,138.41,138.37,0.72145385]
[1768273124425,5.38996433,138.4,138.37,0.72145385]
[1768273124624,5.38996433,138.39,138.37,0.72145385]
[1768273124839,20.40491286,138.41,138.37,0.72145385]
[1768273125020,5.39073972,138.4,138.37,0.72145385]
[1768273125330,20.40491286,138.41,138.37,0.72145385]
[1768273125533,5.39068704,138.4,138.37,0.72145385]
[1768273125737,20.40491286,138.41,138.37,0.72145385]
[1768273125945,5.39068834,138.4,138.37,0.72145385]
[1768273126137,20.40491286,138.41,138.37,0.72145385]
[1768273126339,5.39072421,138.4,138.37,0.72145385]
[1768273126640,5.39024709,138.39,138.37,7.94844788]
[1768273126825,13.18,138.41,138.37,7.22699403]
[1768273127025,5.39055631,138.4,138.37,7.22699403]
[1768273127225,5.39055631,138.39,138.36,7.94879155]
[1768273127425,20.40491267,138.41,138.36,7.94879155]
[1768273127641,5.3904418,138.4,138.37,0.72145385]
[1768273127838,20.40491267,138.41,138.37,0.72145385]
[1768273128143,5.39058553,138.4,138.37,0.72145385]
[1768273133432,5.39058553,138.39,138.37,0.72145385]
[1768273133638,20.40491267,138.41,138.37,0.72145385]
[1768273133844,5.39003357,138.4,138.37,0.72145385]
[1768273134046,5.39003357,138.39,138.37,0.72145385]
[1768273134351,20.40491267,138.41,138.37,0.72145385]
[1768273134651,5.39020268,138.4,138.37,0.72145385]
[1768273134825,5.39020268,138.39,138.37,0.72145385]
[1768273135030,20.40491267,138.41,138.37,0.72145385]
[1768273135230,5.38981249,138.4,138.37,0.72145385]
[1768273135446,5.38981249,138.39,138.37,0.72145385]
[1768273135651,20.40491267,138.41,138.37,0.72145385]
[1768273135856,5.38970863,138.4,138.37,0.72145385]
[1768273136153,5.38970863,138.39,138.37,0.72145385]
[1768273136345,20.40491267,138.41,138.37,0.72145385]
[1768273136546,5.38892085,138.4,138.37,0.72145385]
[1768273136730,20.40491267,138.41,138.37,0.72145385]
[1768273136731,5.38892085,138.39,138.37,0.72145385]
[1768273136931,20.40491267,138.41,138.37,0.72145385]
[1768273137139,5.38678275,138.4,138.37,0.72145385]
[1768273137342,20.40491267,138.41,138.37,0.72145385]
[1768273137343,5.38678275,138.39,138.37,0.72145385]
[1768273137531,20.40491267,138.41,138.37,0.72145385]
[1768273137726,5.38640958,138.4,138.37,0.72145385]
[1768273138031,5.38640958,138.39,138.37,0.72145385]
[1768273138232,20.40491267,138.41,138.37,0.72145385]
[1768273138533,5.38616785,138.4,138.37,0.72145385]
[1768273138734,5.38616785,138.39,138.37,0.72145385]
[1768273138934,20.40491267,138.41,138.37,0.72145385]
[1768273139134,5.38616785,138.4,138.37,0.72145385]
[1768273139434,5.38616785,138.39,138.37,0.72145385]
[1768273139634,20.40491267,138.41,138.37,0.72145385]
[1768273139835,5.38615908,138.4,138.37,0.72145385]
[1768273140134,5.38615908,138.39,138.37,0.72145385]
[1768273140346,20.40491267,138.41,138.37,0.72145385]
[1768273140546,5.38616225,138.4,138.37,0.72145385]
[1768273140749,5.38616225,138.39,138.37,0.72145385]
[1768273140949,20.40491267,138.41,138.37,0.72145385]
[1768273141148,5.38606001,138.4,138.37,0.72145385]
[1768273141465,5.38606001,138.39,138.37,0.72145385]
[1768273141636,20.40491267,138.41,138.37,0.72145385]
[1768273141836,5.38591831,138.4,138.37,0.72145385]
[1768273142043,5.38591831,138.39,138.37,0.72145385]
[1768273142242,20.40491267,138.41,138.37,0.72145385]
[1768273142442,5.38609638,138.4,138.37,0.72145385]
[1768273142658,5.38609638,138.39,138.37,0.72145385]
[1768273142861,20.40491267,138.41,138.37,0.72145385]
[1768273143158,5.38605652,138.4,138.37,0.72145385]
[1768273143359,5.38605652,138.39,138.36,0.72145385]
[1768273143560,20.40491267,138.41,138.36,0.72145385]
[1768273143759,5.38615997,138.4,138.36,0.72145385]
[1768273143953,5.38615997,138.39,138.36,0.72145385]
[1768273144250,20.40491267,138.41,138.36,0.72145385]
[1768273144442,5.38615942,138.4,138.37,0.72145385]
[1768273144642,5.38615942,138.39,138.37,0.72145385]
[1768273144848,20.40491267,138.41,138.37,0.72145385]
[1768273145042,5.38616266,138.4,138.37,0.72145385]
[1768273145244,5.38616266,138.39,138.37,0.72145385]
[1768273145445,20.40491267,138.41,138.37,0.72145385]
[1768273145663,5.38622588,138.4,138.37,0.72145385]
[1768273145867,5.38622588,138.39,138.37,0.72145385]
[1768273146163,20.40491267,138.41,138.37,0.72145385]
[1768273146364,5.38622326,138.4,138.37,0.72145385]
[1768273146663,5.38622326,138.39,138.37,0.72145385]
[1768273146860,20.40491267,138.41,138.37,0.72145385]
[1768273147166,5.38623811,138.4,138.37,0.72145385]
[1768273147468,5.38623811,138.39,138.37,0.72145385]
[1768273147669,20.40491267,138.41,138.37,0.72145385]
[1768273147870,5.38615545,138.4,138.37,0.72145385]
[1768273148045,5.38615545,138.39,138.37,0.72145385]
[1768273148245,20.40491267,138.41,138.37,0.72145385]
[1768273148447,5.38622011,138.4,138.37,0.72145385]
[1768273148646,5.38622011,138.39,138.37,0.72145385]
[1768273148848,20.40491267,138.41,138.37,0.72145385]
[1768273149152,5.3862175,138.4,138.37,0.72145385]
[1768273149348,5.3862175,138.39,138.37,0.72145385]
[1768273149566,20.40491267,138.41,138.37,0.72145385]
[1768273149764,5.3862126,138.4,138.37,0.72145385]
[1768273149963,5.3862126,138.39,138.37,0.72145385]
[1768273150266,20.40491267,138.41,138.37,0.72145385]
[1768273150469,5.38616404,138.4,138.37,0.72145385]
[1768273150771,5.38616404,138.39,138.37,0.72145385]
[1768273150971,20.40491267,138.41,138.37,0.72145385]
[1768273151171,5.38615545,138.4,138.37,0.72145385]
[1768273151469,5.38615545,138.39,138.37,0.72145385]
[1768273151671,20.40491267,138.41,138.37,0.72145385]
[1768273151871,5.3860699,138.4,138.37,0.72145385]
[1768273152058,5.3860699,138.39,138.37,0.72145385]
[1768273152260,20.40491267,138.41,138.37,0.72145385]
[1768273152466,5.38598717,138.4,138.37,0.72145385]
[1768273152669,5.38598717,138.39,138.37,0.72145385]
[1768273152976,20.40491267,138.41,138.37,0.72145385]
[1768273153175,5.38607711,138.4,138.37,0.72145385]
[1768273153382,5.38607711,138.39,138.37,0.72145385]
[1768273153559,20.40491267,138.41,138.37,0.72145385]
[1768273153755,5.38591456,138.4,138.37,0.72145385]
[1768273153954,5.38591456,138.39,138.37,0.72145385]
[1768273154155,20.40491267,138.41,138.37,0.72145385]
[1768273154374,5.38591549,138.4,138.37,0.72145385]
[1768273154572,5.38591549,138.39,138.37,0.72145385]
[1768273154872,20.40491267,138.41,138.37,0.72145385]
[1768273155064,5.38586256,138.4,138.37,0.72145385]
[1768273155263,5.38586256,138.39,138.37,0.72145385]
[1768273155464,20.40491267,138.41,138.37,0.72145385]
[1768273155773,5.38580856,138.4,138.38,0.67080395]
[1768273155975,13.18,138.41,138.38,0.67080395]
[1768273156277,5.38581532,138.4,138.38,0.67080395]
[1768273158382,5.38581532,138.39,138.38,0.67080395]
[1768273158680,5.38581532,138.4,138.38,0.67080395]
[1768273158882,5.38581532,138.39,138.38,0.67080395]
[1768273159177,5.38663425,138.4,138.38,0.67080395]
[1768273159375,5.38663425,138.39,138.38,0.67080395]
[1768273159880,5.38663425,138.39,138.37,7.89745275]
[1768273160182,20.40499313,138.41,138.37,0.67080395]
[1768273160360,5.38677251,138.4,138.37,0.67080395]
[1768273160677,5.38677251,138.39,138.35,0.67080395]
[1768273160874,5.38677251,138.38,138.35,0.67080395]
[1768273161069,20.40499313,138.41,138.35,0.67080395]
[1768273161281,5.38672994,138.4,138.35,0.67080395]
[1768273161488,5.38672994,138.39,138.35,0.67080395]
[1768273161692,5.38672994,138.38,138.35,0.67080395]
[1768273161894,7.22589479,138.4,138.35,0.67080395]
[1768273162179,5.38714647,138.39,138.35,0.67080395]
[1768273162379,5.38714647,138.38,138.35,0.67080395]
[1768273162583,7.22589479,138.4,138.35,0.67080395]
[1768273162882,5.38671077,138.39,138.35,0.67080395]
[1768273163094,5.38671077,138.38,138.35,0.67080395]
[1768273163271,7.22589479,138.4,138.35,0.67080395]
[1768273163476,5.38671844,138.39,138.35,0.67080395]
[1768273163768,5.38671844,138.38,138.35,0.67080395]
[1768273163969,7.22589479,138.4,138.35,7.89883672]
[1768273164188,5.38628532,138.39,138.35,7.89883672]
[1768273164363,5.38628532,138.38,138.35,7.89883672]
[1768273164565,7.22589479,138.4,138.36,0.67080395]
[1768273164781,5.38586137,138.39,138.36,0.67080395]
[1768273165076,5.38586137,138.38,138.36,0.67080395]
[1768273165275,7.22589479,138.4,138.36,0.67080395]
[1768273165585,5.38577657,138.39,138.36,0.67080395]
[1768273165770,5.38577657,138.38,138.36,0.67080395]
[1768273165971,7.22589479,138.4,138.36,0.67080395]
[1768273166191,5.38577921,138.39,138.36,0.67080395]
[1768273166372,7.22589479,138.4,138.36,0.67080395]
[1768273166373,5.38577921,138.38,138.36,0.67080395]
[1768273166691,7.22589479,138.4,138.36,0.67080395]
[1768273166881,5.38550355,138.39,138.36,0.67080395]
[1768273167079,5.38550355,138.38,138.36,0.67080395]
[1768273167385,7.22589479,138.4,138.36,0.67080395]
[1768273167588,5.38530676,138.39,138.36,0.67080395]
[1768273167881,5.38530676,138.38,138.36,0.67080395]
[1768273168085,7.22589479,138.4,138.36,0.67080395]
[1768273168297,5.38530676,138.39,138.36,0.67080395]
[1768273168584,5.38530676,138.38,138.36,0.67080395]
[1768273168786,7.22589479,138.4,138.36,0.67080395]
[1768273169097,5.38509271,138.39,138.36,0.67080395]
[1768273169263,5.38509271,138.38,138.36,0.67080395]
[1768273169462,7.22589479,138.4,138.36,0.67080395]
[1768273169683,5.38490228,138.39,138.36,0.67080395]
[1768273169867,5.38490228,138.38,138.36,0.67080395]
[1768273170068,7.22589479,138.4,138.36,0.67080395]
[1768273170369,5.38490905,138.39,138.36,0.67080395]
[1768273170564,5.38474724,138.38,138.36,0.67080395]
[1768273170764,7.22589479,138.4,138.36,0.67080395]
[1768273170963,5.3847531,138.39,138.36,0.67080395]
[1768273171180,5.3847531,138.38,138.36,0.67080395]
[1768273171382,7.22589479,138.4,138.36,0.67080395]
[1768273171569,5.38466313,138.39,138.36,0.67080395]
[1768273171765,5.38466313,138.38,138.36,0.67080395]
[1768273171964,7.22589479,138.4,138.36,0.67080395]
[1768273172161,5.38466313,138.39,138.37,0.67080395]
[1768273172384,13.18,138.41,138.37,0.67080395]
[1768273172582,5.38474085,138.4,138.37,0.67080395]
[1768273172783,5.38474085,138.39,138.37,0.67080395]
[1768273173086,13.18,138.41,138.37,0.67080395]
[1768273173276,5.38474085,138.4,138.37,0.67080395]
[1768273173478,5.38474085,138.39,138.37,0.67080395]
[1768273173677,13.18,138.41,138.37,0.67080395]
[1768273173877,5.38471493,138.4,138.37,0.67080395]
[1768273174184,5.38471493,138.39,138.37,0.67080395]
[1768273174482,13.18,138.41,138.37,0.67080395]
[1768273174681,5.38469636,138.4,138.37,0.67080395]
[1768273174883,5.38469636,138.39,138.37,0.67080395]
[1768273175077,20.40494271,138.41,138.37,0.67080395]
[1768273175278,5.38469636,138.4,138.37,0.67080395]
[1768273175578,5.38469636,138.39,138.37,0.67080395]
[1768273175777,20.40494271,138.41,138.37,0.67080395]
[1768273175964,5.3846903,138.4,138.37,0.67080395]
[1768273176163,5.3846903,138.39,138.37,0.67080395]
[1768273176468,20.40494271,138.41,138.37,0.67080395]
[1768273176665,5.38468647,138.4,138.37,0.67080395]
[1768273176868,5.38468647,138.39,138.37,0.67080395]
[1768273177091,20.40494271,138.41,138.37,0.67080395]
[1768273177273,5.38467732,138.4,138.37,0.67080395]
[1768273177472,5.38467732,138.39,138.37,0.67080395]
[1768273177668,20.40494271,138.41,138.37,0.67080395]
[1768273177965,5.38463907,138.4,138.37,0.67080395]
[1768273178169,5.38463907,138.39,138.37,0.67080395]
[1768273178386,20.40494271,138.41,138.37,0.67080395]
[1768273178588,5.38459602,138.4,138.37,0.67080395]
[1768273178790,5.38459602,138.39,138.37,0.67080395]
[1768273179007,20.40494271,138.41,138.37,0.67080395]
[1768273179191,5.3845934,138.4,138.37,0.67080395]
[1768273179394,5.3845934,138.39,138.37,0.67080395]
[1768273179573,20.40494271,138.41,138.37,0.67080395]
[1768273179774,5.38456451,138.4,138.37,0.67080395]
[1768273179973,20.40494271,138.41,138.37,0.67080395]
[1768273180192,5.3845632,138.4,138.37,0.67080395]
[1768273180393,5.3845632,138.39,138.37,0.67080395]
[1768273180593,20.40494271,138.41,138.37,0.67080395]
[1768273180893,5.38457325,138.4,138.37,0.67080395]
[1768273181086,5.38457325,138.39,138.37,0.67080395]
[1768273181287,20.40494271,138.41,138.37,0.67080395]
[1768273181481,5.38381808,138.4,138.37,0.67080395]
[1768273181792,5.38381808,138.39,138.36,0.65987688]
[1768273181973,7.2254631,138.4,138.36,0.65987688]
[1768273182175,5.38389947,138.39,138.36,0.65987688]
[1768273182375,7.2254631,138.4,138.36,0.65987688]
[1768273182595,5.38396161,138.39,138.36,0.65987688]
[1768273182796,7.2254631,138.4,138.36,0.65987688]
[1768273182994,30.67531446,138.39,138.32,0.1]
[1768273183194,18.56396161,138.38,138.32,0.1]
[1768273183398,6.6801107,138.36,138.29,0.1]
[1768273183695,6.6801107,138.36,138.26,0.75987688]
[1768273183696,0.28432314,138.33,138.26,0.1]
[1768273183872,0.65964705,138.3,138.19,21.8636441]
[1768273184069,13.28460647,138.29,138.19,3.77266861]
[1768273184273,13.28460647,138.29,138.22,7.23473384]
[1768273184480,13.28460647,138.29,138.21,18.08732046]
[1768273184686,13.28460647,138.29,138.23,7.2342469]
[1768273184890,13.28460647,138.29,138.2,0.1]
[1768273184891,13.18,138.29,138.2,0.1]
[1768273185293,7.89613209,138.3,138.2,0.1]
[1768273185478,13.2,138.3,138.2,0.1]
[1768273185882,13.2,138.3,138.25,0.65987688]
[1768273186086,7.8955646,138.31,138.25,0.65987688]
[1768273186287,0.099,138.3,138.25,0.65987688]
[1768273186488,7.8955646,138.31,138.25,0.65987688]
[1768273187491,7.8955646,138.31,138.26,0.65987688]
[1768273189478,13.86531016,138.32,138.27,0.65987688]
[1768273189788,13.2,138.32,138.27,0.65987688]
[1768273191098,13.2,138.32,138.28,0.65987688]
[1768273200494,0.10460647,138.31,138.28,7.89157085]
[1768273200697,13.86531016,138.32,138.28,7.89157085]
[1768273200911,0.099,138.31,138.28,0.65987688]
[1768273201115,0.099,138.31,138.27,0.65987688]
[1768273201615,20.42992114,138.32,138.27,0.65987688]
[1768273201814,0.65964705,138.31,138.27,0.65987688]
[1768273203618,21.0952313,138.32,138.27,0.65987688]
[1768273204124,20.42992114,138.32,138.28,0.65987688]
[1768273206702,21.0939891,138.32,138.28,0.65987688]
[1768273206919,0.10022977,138.31,138.28,0.65987688]
[1768273207412,20.42992114,138.32,138.28,0.65987688]
[1768273207619,21.0939891,138.32,138.28,0.65987688]
[1768273208513,20.42992114,138.32,138.28,0.65987688]
[1768273209420,20.53015091,138.32,138.28,0.65987688]
[1768273211023,13.2,138.34,138.29,0.6838244]
[1768273211219,13.30022977,138.34,138.29,0.6838244]
[1768273211524,20.52892575,138.34,138.29,0.6838244]
[1768273211831,20.52892575,138.34,138.29,7.91489707]
[1768273212118,20.52892575,138.34,138.3,0.6838244]
[1768273213225,20.52892575,138.34,138.31,0.6838244]
[1768273213226,13.2,138.34,138.31,0.6838244]
[1768273213405,0.10022977,138.33,138.3,7.91447689]
[1768273213925,13.2,138.34,138.31,0.6838244]
[1768273214109,13.2,138.35,138.31,0.6838244]
[1768273216923,13.2,138.35,138.32,0.72251858]
[1768273219509,13.1132321,138.35,138.32,0.72251858]
[1768273223132,13.77287915,138.35,138.32,0.72251858]
[1768273223631,13.1132321,138.35,138.32,0.72251858]
[1768273226406,20.44046405,138.35,138.32,0.72251858]
[1768273226611,5.35865738,138.34,138.32,0.72251858]
[1768273226813,20.44046405,138.35,138.32,0.72251858]
[1768273227109,5.35857063,138.34,138.32,0.72251858]
[1768273227314,20.44046405,138.35,138.32,0.72251858]
[1768273227537,5.36201984,138.34,138.32,0.72251858]
[1768273227721,20.44046405,138.35,138.32,0.72251858]
[1768273228026,5.36201984,138.34,138.32,0.72251858]
[1768273228233,20.44046405,138.35,138.32,0.72251858]
[1768273228418,5.3616485,138.34,138.32,0.72251858]
[1768273228619,20.44046405,138.35,138.32,0.72251858]
[1768273228820,5.36173794,138.34,138.32,0.72251858]
[1768273229020,20.44046405,138.35,138.32,0.72251858]
[1768273229215,5.36195216,138.34,138.32,0.72251858]
[1768273229416,20.44046405,138.35,138.32,0.72251858]
[1768273229615,5.36306889,138.34,138.32,0.72251858]
[1768273229807,20.44046405,138.35,138.32,0.72251858]
[1768273230009,5.36306889,138.34,138.32,0.72251858]
[1768273230227,0.66531016,138.41,138.32,0.72251858]
[1768273230430,5.36462288,138.4,138.33,0.72251858]
[1768273230630,0.65964705,138.42,138.34,0.72251858]
[1768273230828,0.65409665,138.4,138.34,0.72251858]
[1768273231034,0.11010137,138.38,138.33,0.72251858]
[1768273231234,0.11010137,138.38,138.32,26.02593697]
[1768273231623,13.2,138.4,138.33,0.72251858]
[1768273231825,5.46203857,138.39,138.33,0.72251858]
[1768273232026,0.099,138.39,138.33,0.72251858]
[1768273232224,0.099,138.39,138.35,0.72251858]
[1768273233938,0.099,138.39,138.33,0.72251858]
[1768273234236,0.099,138.39,138.34,0.72251858]
[1768273237758,0.099,138.39,138.3,0.69443008]
[1768273239241,0.099,138.39,138.32,0.69443008]
[1768273240246,0.099,138.39,138.33,7.22908985]
[1768273240727,0.099,138.39,138.34,0.69443008]
[1768273242544,0.65409665,138.36,138.31,0.69443008]
[1768273242752,0.11010137,138.34,138.31,0.69443008]
[1768273242958,0.11010137,138.34,138.28,0.69443008]
[1768273243451,0.11010137,138.34,138.27,7.23216537]
[1768273243452,0.6486567,138.33,138.27,7.23216537]
[1768273243657,0.6486567,138.33,138.28,0.69443008]
[1768273244657,7.87804983,138.33,138.28,0.69443008]
[1768273246554,0.11548692,138.32,138.26,0.69443008]
[1768273247755,0.643325,138.31,138.27,7.2322268]
[1768273247936,0.643325,138.31,138.25,7.92728026]
[1768273248137,0.1207653,138.3,138.25,7.92728026]
[1768273248454,0.0907653,138.3,138.25,7.23285018]
[1768273248656,0.0907653,138.3,138.24,8.02811775]
[1768273249032,0.0907653,138.3,138.25,0.69443008]
[1768273251256,7.32142328,138.3,138.25,0.69443008]
[1768273261664,7.23065798,138.3,138.26,0.69443008]
[1768273261970,7.32965798,138.3,138.26,0.69443008]
[1768273265166,13.2,138.31,138.27,0.69752848]
[1768273265167,21.06554788,138.31,138.27,0.69752848]
[1768273266257,13.2,138.31,138.27,0.69752848]
[1768273267764,13.2,138.31,138.28,0.69752848]
[1768273267964,7.32861671,138.32,138.28,0.69752848]
[1768273268272,20.52861671,138.32,138.28,0.69752848]
[1768273268874,0.099,138.32,138.28,0.69752848]
[1768273269050,13.299,138.32,138.28,0.69752848]
[1768273269968,0.62994705,138.31,138.26,0.69752848]
[1768273271369,7.86055963,138.31,138.26,0.69752848]
[1768273273955,7.33520952,138.3,138.26,0.69752848]
[1768273279068,0.62469068,138.29,138.26,0.69752848]